bitfinex/quotes_SOLUSD_20251013
["timestamp","ask_amount","ask_price","bid_price","bid_amount"]
[1760333596011,5.22505125,195.12,195.03,0.72]
[1760333596012,0.71,195.09,195.08,6.56734337]
[1760333596235,0.71,195.09,195.07,6.56734337]
[1760333597833,5.83588127,195.09,195.07,6.56734337]
[1760333598636,5.83588127,195.09,195.06,6.56734337]
[1760333599032,0.71,195.08,194.99,10.87647521]
[1760333599229,0.71,195.07,195.02,6.56734337]
[1760333599530,0.71,195.06,195.02,6.56734337]
[1760333600313,0.71,195.06,195.03,6.56734337]
[1760333600615,0.71,195.08,195.03,6.56734337]
[1760333600820,5.83646484,195.07,195.03,6.56734337]
[1760333601207,2.67944895,195.06,195.03,6.56734337]
[1760333602025,7.80608493,195.06,195.03,6.56734337]
[1760333602433,0.71,195.05,194.99,6.56734337]
[1760333602736,0.71,195.04,194.97,10.87647521]
[1760333602910,0.71,195.04,194.99,6.56734337]
[1760333603310,2.67944895,195.06,195.03,6.56734337]
[1760333603511,2.67944895,195.06,195.05,6.56734337]
[1760333603730,2.67944895,195.06,195.05,18.16381858]
[1760333603936,5.12533877,195.11,195.05,23.29061264]
[1760333604133,0.1,195.12,195.1,6.56734337]
[1760333604334,0.1,195.12,195.11,6.56734337]
[1760333604836,2.77857046,195.12,195.11,6.56734337]
[1760333606526,2.77857046,195.12,195.08,0.72]
[1760333606831,2.77857046,195.12,195.11,6.56734337]
[1760333609442,2.88412454,195.12,195.11,6.56734337]
[1760333611846,8.72917579,195.12,195.05,6.56734337]
[1760333612347,29.52917579,195.12,195.04,7.27734337]
[1760333612547,0.72,195.11,195.04,7.27734337]
[1760333613031,0.72,195.1,195.02,6.56734337]
[1760333613236,41.62180391,195.12,195.02,6.56734337]
[1760333613237,0.72,195.09,195.02,6.56734337]
[1760333613435,0.72,195.08,195.01,17.44381858]
[1760333613626,0.72,195.07,194.92,134.1]
[1760333613824,0.72,195.06,194.99,6.56734337]
[1760333614852,20.8,195.09,194.97,6.56734337]
[1760333614853,0.72,195.05,194.97,6.56734337]
[1760333615051,5.12741629,195.03,194.97,6.56734337]
[1760333615548,5.12741629,195.03,194.99,6.56734337]
[1760333615730,5.84741629,195.03,194.99,6.56734337]
[1760333616049,5.84741629,195.03,194.96,0.71]
[1760333616050,5.84741629,195.03,194.98,6.56734337]
[1760333617143,0.72,195.02,194.98,6.56734337]
[1760333617342,20.8,195.02,194.91,20.8]
[1760333617651,20.8,195.0,194.89,0.71]
[1760333617947,0.72,194.99,194.86,7.27734337]
[1760333618137,0.72,194.98,194.87,6.56734337]
[1760333618333,0.72,194.97,194.88,6.56734337]
[1760333618538,0.72,194.96,194.88,6.56734337]
[1760333618851,17.95424232,194.94,194.87,6.56734337]
[1760333619039,0.72,194.93,194.86,7.27734337]
[1760333619240,0.72,194.93,194.87,6.56734337]
[1760333619936,20.8,194.91,194.83,0.91]
[1760333620135,20.8,194.91,194.89,6.56734337]
[1760333620867,25.93069986,194.91,194.89,6.56734337]
[1760333621031,25.93069986,194.91,194.88,6.56734337]
[1760333621844,5.13069986,194.91,194.89,6.56734337]
[1760333623054,5.13030987,194.92,194.89,6.56734337]
[1760333623546,0.66,194.98,194.91,6.56734337]
[1760333623756,5.7889942,194.97,194.91,6.56734337]
[1760333623958,5.7889942,194.97,194.84,5.13241634]
[1760333623959,0.66,194.96,194.84,0.68]
[1760333624136,20.8,194.94,194.87,6.56734337]
[1760333624338,0.66,194.93,194.85,6.56734337]
[1760333624529,0.66,194.92,194.85,6.56734337]
[1760333624742,0.66,194.91,194.85,6.56734337]
[1760333625640,5.13030987,194.92,194.88,6.56734337]
[1760333625856,5.79030987,194.92,194.88,6.56734337]
[1760333626838,5.79030987,194.92,194.86,0.68]
[1760333627041,5.79030987,194.92,194.86,7.24734337]
[1760333627868,21.46,194.91,194.84,6.56734337]
[1760333628161,21.46,194.91,194.83,0.2]
[1760333628162,0.66,194.9,194.83,0.2]
[1760333628385,0.66,194.9,194.83,6.76734337]
[1760333629240,0.10293418,194.84,194.83,6.76734337]
[1760333629442,0.10293418,194.84,194.83,7.48734337]
[1760333629936,0.10293418,194.84,194.83,0.2]
[1760333631159,5.23535052,194.84,194.83,0.2]
[1760333631367,5.92535052,194.84,194.83,0.2]
[1760333632046,5.23535052,194.84,194.83,0.2]
[1760333632249,5.92535052,194.84,194.83,0.2]
[1760333632445,26.72535052,194.84,194.83,0.2]
[1760333633048,16.80182573,194.84,194.83,1e-08]
[1760333633839,37.60182573,194.84,194.83,1e-08]
[1760333634041,5.92535052,194.84,194.83,1e-08]
[1760333634662,0.10293418,194.84,194.83,0.72000001]
[1760333634859,0.10293418,194.84,194.83,18.16381859]
[1760333635069,1.9619861,194.84,194.83,7.28734338]
[1760333635266,1.9619861,194.84,194.83,23.29649836]
[1760333635485,1.9619861,194.84,194.83,16.72915499]
[1760333635665,1.9619861,194.84,194.83,12.42002315]
[1760333638782,2.6519861,194.84,194.83,1e-08]
[1760333639078,1.9619861,194.84,194.83,1e-08]
[1760333640277,7.78440244,194.84,194.83,1e-08]
[1760333640967,2.6519861,194.84,194.83,1e-08]
[1760333641366,7.78440244,194.84,194.83,1e-08]
[1760333641576,7.09440244,194.84,194.83,1e-08]
[1760333641981,7.78440244,194.84,194.83,1e-08]
[1760333642355,7.09440244,194.84,194.83,1e-08]
[1760333643162,7.78440244,194.84,194.83,1e-08]
[1760333643358,28.58440244,194.84,194.83,1e-08]
[1760333644056,39.46087765,194.84,194.83,1e-08]
[1760333644258,18.66087765,194.84,194.83,1e-08]
[1760333646178,38.66087764,194.84,194.83,1e-08]
[1760333648563,18.66087765,194.84,194.83,1e-08]
[1760333649488,18.76585398,194.84,194.83,1e-08]
[1760333649982,39.56585398,194.84,194.83,1e-08]
[1760333650170,18.76585398,194.84,194.83,1e-08]
[1760333651265,39.56585398,194.84,194.83,1e-08]
[1760333651474,18.76585398,194.84,194.83,1e-08]
[1760333651674,39.56585398,194.84,194.83,1e-08]
[1760333651876,38.76585397,194.84,194.83,1e-08]
[1760333652658,18.76585398,194.84,194.83,1e-08]
[1760333652875,39.56585398,194.84,194.83,1e-08]
[1760333653085,18.76585398,194.84,194.83,1e-08]
[1760333653260,39.56585398,194.84,194.83,1e-08]
[1760333653461,7.88937877,194.84,194.83,1e-08]
[1760333653661,7.19937877,194.84,194.83,1e-08]
[1760333653861,7.90937877,194.84,194.83,1e-08]
[1760333654866,27.99937877,194.84,194.83,1e-08]
[1760333655167,7.19937877,194.84,194.83,1e-08]
[1760333657090,27.99937877,194.84,194.83,1e-08]
[1760333657271,7.19937877,194.84,194.83,1e-08]
[1760333661277,7.90937877,194.84,194.83,1e-08]
[1760333662006,18.78585398,194.84,194.83,1e-08]
[1760333663097,38.78585397,194.84,194.83,1e-08]
[1760333666809,18.78585398,194.84,194.83,1e-08]
[1760333667394,18.07585398,194.84,194.83,1e-08]
[1760333667692,39.58585398,194.84,194.83,1e-08]
[1760333668097,18.78585398,194.84,194.83,1e-08]
[1760333668893,39.58585398,194.84,194.83,1e-08]
[1760333669096,18.78585398,194.84,194.83,1e-08]
[1760333669292,18.7838327,194.84,194.83,1e-08]
[1760333672015,39.5838327,194.84,194.83,1e-08]
[1760333672192,18.7838327,194.84,194.83,1e-08]
[1760333672794,7.19735749,194.84,194.83,1e-08]
[1760333673106,18.7838327,194.84,194.83,1e-08]
[1760333676119,31.67647521,194.8,194.73,0.66]
[1760333676310,32.38647521,194.8,194.73,0.66]
[1760333676504,17.96806817,194.79,194.73,0.66]
[1760333676821,20.8,194.76,194.73,0.66]
[1760333677707,21.51,194.76,194.68,78.376]
[1760333677902,21.51,194.76,194.67,0.2]
[1760333679426,20.8,194.72,194.67,0.2]
[1760333679806,20.8,194.72,194.68,0.15]
[1760333680009,20.8,194.72,194.69,0.15]
[1760333681904,5.13584304,194.71,194.69,0.15]
[1760333682131,5.13584304,194.71,194.67,0.2]
[1760333682326,5.13584304,194.71,194.68,0.15]
[1760333683818,18.63545066,194.71,194.67,0.2]
[1760333685115,20.8,194.68,194.67,0.2]
[1760333685630,21.52,194.68,194.67,0.2]
[1760333686125,20.8,194.68,194.67,0.2]
[1760333687333,25.93663447,194.68,194.67,0.2]
[1760333689321,26.04673057,194.68,194.67,0.2]
[1760333690641,0.1100961,194.68,194.67,0.35]
[1760333690936,0.07124982,194.69,194.67,15.29623044]
[1760333691144,0.07124982,194.69,194.68,9.8093321]
[1760333693458,0.07124982,194.69,194.68,14.94596657]
[1760333693616,0.07124982,194.69,194.68,25.82244178]
[1760333694719,0.11156064,194.7,194.69,10.87647521]
[1760333694925,0.11156064,194.7,194.69,20.68580731]
[1760333696436,0.11156064,194.7,194.69,25.82217795]
[1760333696824,0.11156064,194.7,194.69,46.62217795]
[1760333697741,0.11156064,194.7,194.69,36.81284585]
[1760333697942,0.11156064,194.7,194.69,46.62217795]
[1760333700445,0.11156064,194.7,194.69,9.8093321]
[1760333701146,0.83156064,194.7,194.69,78.376]
[1760333701542,5.96766747,194.7,194.69,78.376]
[1760333701859,5.96766747,194.7,194.67,0.2]
[1760333701860,20.8,194.68,194.67,0.2]
[1760333702146,20.8,194.68,194.65,0.2]
[1760333702448,0.72,194.67,194.62,0.2]
[1760333702840,20.8,194.63,194.62,0.2]
[1760333703152,21.52,194.63,194.62,0.2]
[1760333703527,0.72,194.66,194.62,0.2]
[1760333703734,20.8,194.67,194.63,9.82768384]
[1760333703947,0.72,194.66,194.63,9.82768384]
[1760333704137,12.95182771,194.7,194.65,9.82768384]
[1760333704138,0.83156064,194.7,194.65,9.82768384]
[1760333704342,0.11156064,194.7,194.68,9.82768384]
[1760333704846,0.11156064,194.7,194.69,9.82768384]
[1760333705237,0.10844314,194.71,194.69,21.10415905]
[1760333705441,0.10844314,194.71,194.7,10.11768384]
[1760333705830,0.11138704,194.73,194.72,20.8]
[1760333706031,0.10641386,194.77,194.73,31.67647521]
[1760333706232,1e-08,194.76,194.75,20.70415905]
[1760333707148,2.68249766,194.76,194.75,20.70415905]
[1760333707953,2.68249766,194.76,194.75,25.83894723]
[1760333708555,2.68249766,194.76,194.75,9.82768384]
[1760333709355,2.79126706,194.76,194.75,41.50415905]
[1760333709544,0.10201703,194.77,194.76,10.87647521]
[1760333709743,0.10201703,194.77,194.76,20.70415905]
[1760333710144,0.10201703,194.77,194.76,25.83868359]
[1760333710353,0.10201703,194.77,194.76,14.96220838]
[1760333711469,0.10201703,194.77,194.74,20.8]
[1760333711637,0.72,194.76,194.73,9.82768384]
[1760333711840,0.10201703,194.77,194.73,9.82768384]
[1760333712039,0.72,194.75,194.72,9.82768384]
[1760333712335,0.72,194.74,194.71,9.82768384]
[1760333712550,0.72,194.73,194.71,9.82768384]
[1760333712844,0.72,194.72,194.65,12.84312737]
[1760333713043,0.72,194.72,194.68,9.82768384]
[1760333713359,0.72,194.71,194.64,9.82768384]
[1760333713544,0.71,194.7,194.61,5.13837741]
[1760333713861,0.71,194.7,194.63,9.82768384]
[1760333714067,0.71,194.69,194.63,9.82768384]
[1760333714271,20.8,194.7,194.63,9.82768384]
[1760333714438,0.71,194.68,194.62,0.2]
[1760333716048,21.51,194.68,194.62,0.2]
[1760333716252,17.97914419,194.67,194.62,0.2]
[1760333716642,0.71,194.66,194.62,0.2]
[1760333718456,20.8,194.64,194.62,0.2]
[1760333718660,5.84795406,194.63,194.62,0.2]
[1760333719643,26.64795406,194.63,194.62,0.2]
[1760333720062,29.33412943,194.63,194.62,0.2]
[1760333721156,24.19617537,194.63,194.62,0.2]
[1760333721859,2.68617537,194.63,194.62,0.2]
[1760333722357,3.39617537,194.63,194.62,0.2]
[1760333722839,2.68617537,194.63,194.62,0.2]
[1760333723649,2.68617537,194.63,194.62,6.80199813]
[1760333724048,2.68617537,194.63,194.62,11.94021619]
[1760333725947,2.68617537,194.63,194.62,22.8166914]
[1760333726143,2.68617537,194.63,194.62,80.6]
[1760333726869,2.68617537,194.63,194.62,85.73821806]
[1760333727464,2.68617537,194.63,194.62,0.2]
[1760333727961,3.39617537,194.63,194.62,0.2]
[1760333728441,8.53412943,194.63,194.62,0.2]
[1760333729261,8.64662647,194.63,194.62,0.2]
[1760333730550,2.79867241,194.63,194.62,0.2]
[1760333730952,3.50867241,194.63,194.62,0.2]
[1760333731356,8.64662647,194.63,194.62,0.2]
[1760333731559,3.50867241,194.63,194.62,0.2]
[1760333732270,8.64662647,194.63,194.62,0.2]
[1760333734354,3.50867241,194.63,194.62,0.2]
[1760333734771,8.64662647,194.63,194.62,0.2]
[1760333737591,8.64662647,194.63,194.6,0.2]
[1760333737592,20.8,194.61,194.6,0.2]
[1760333737759,20.8,194.6,194.55,0.2]
[1760333737955,21.51,194.6,194.55,0.2]
[1760333738873,0.71,194.59,194.55,0.2]
[1760333739080,0.71,194.58,194.55,0.2]
[1760333739254,17.98653578,194.59,194.55,0.2]
[1760333739460,18.69653578,194.59,194.55,0.2]
[1760333739655,0.71,194.58,194.55,0.2]
[1760333740175,33.64586662,194.62,194.57,6.60199813]
[1760333740354,18.69468732,194.61,194.55,0.2]
[1760333740554,5.84848209,194.61,194.55,0.2]
[1760333741283,5.13927433,194.58,194.55,0.2]
[1760333741780,5.84927433,194.58,194.55,0.2]
[1760333742176,0.71,194.57,194.55,0.2]
[1760333743265,5.13927433,194.58,194.55,0.2]
[1760333743497,20.8,194.59,194.55,6.80199813]
[1760333743781,0.67,194.58,194.55,0.2]
[1760333744878,0.66,194.57,194.55,0.2]
[1760333745183,0.66,194.56,194.55,0.2]
[1760333745554,5.79980263,194.56,194.55,0.2]
[1760333749357,5.9016683,194.56,194.55,0.2]
[1760333749573,5.2416683,194.56,194.55,0.2]
[1760333749973,5.9016683,194.56,194.55,0.2]
[1760333750381,8.58845388,194.56,194.55,0.2]
[1760333752391,2.78865125,194.56,194.55,0.2]
[1760333758676,8.58845388,194.56,194.55,0.2]
[1760333759375,20.8,194.54,194.53,0.2]
[1760333759576,25.94033103,194.54,194.53,0.2]
[1760333759889,26.60033103,194.54,194.53,0.2]
[1760333766674,26.60033103,194.54,194.52,0.2]
[1760333766989,39.45115862,194.54,194.5,0.2]
[1760333767186,0.66,194.53,194.5,0.2]
[1760333767388,38.79115862,194.54,194.5,0.2]
[1760333767686,39.45115862,194.54,194.5,0.2]
[1760333768600,20.8,194.54,194.51,0.69]
[1760333768891,25.94039182,194.54,194.52,0.69]
[1760333769269,0.10402887,194.53,194.52,0.69]
[1760333769772,0.10402887,194.53,194.52,3.33339111]
[1760333770683,0.10402887,194.53,194.52,19.35072587]
[1760333771995,0.10402887,194.53,194.51,7.78436202]
[1760333772199,0.10402887,194.53,194.5,2.84339111]
[1760333772693,0.10402887,194.53,194.5,3.53339111]
[1760333772994,5.24472363,194.53,194.5,0.2]
[1760333773189,0.10402887,194.53,194.5,0.2]
[1760333773700,0.10402887,194.53,194.5,6.80443147]
[1760333773902,0.10402887,194.53,194.52,6.60443147]
[1760333774407,0.10402887,194.53,194.52,7.26443147]
[1760333774570,0.10402887,194.53,194.52,12.40529102]
[1760333775998,0.10402887,194.53,194.52,92.80529102]
[1760333776999,0.10402887,194.53,194.52,103.68176623]
[1760333777897,0.10402887,194.53,194.52,244.3861977]
[1760333778078,0.10391299,194.54,194.53,10.87647521]
[1760333778279,0.10391299,194.54,194.53,18.14090668]
[1760333778792,0.10062424,194.56,194.54,36.81680624]
[1760333778994,0.10062424,194.56,194.55,6.60443147]
[1760333779188,0.10062424,194.56,194.55,7.26443147]
[1760333779397,0.10062424,194.56,194.55,0.66]
[1760333779599,0.10062424,194.56,194.55,7.26443147]
[1760333780382,0.10062424,194.56,194.55,12.40449829]
[1760333780680,0.10062424,194.56,194.55,5.80006682]
[1760333780895,0.81062424,194.56,194.54,214.39608701]
[1760333781088,0.10062424,194.56,194.54,11.74472147]
[1760333781282,0.10062424,194.56,194.55,6.60443147]
[1760333781791,0.10062424,194.56,194.55,9.8324757]
[1760333783903,0.10062424,194.56,194.55,95.92862953]
[1760333784094,0.10062424,194.56,194.55,80.29608701]
[1760333784403,0.10062424,194.56,194.55,90.12856271]
[1760333788903,0.10062424,194.56,194.55,240.90510474]
[1760333789201,2.68556057,194.59,194.55,26.50901773]
[1760333789510,2.79684936,194.59,194.58,9.8324757]
[1760333790290,3.50684936,194.59,194.58,9.8324757]
[1760333790689,3.50684936,194.59,194.54,134.1]
[1760333790927,0.71,194.58,194.51,16.01738986]
[1760333791217,0.71,194.58,194.53,9.8324757]
[1760333791410,0.71,194.58,194.54,9.8324757]
[1760333791821,0.71,194.57,194.54,9.8324757]
[1760333792811,0.71,194.57,194.52,5.14062551]
[1760333793001,0.71,194.56,194.54,9.8324757]
[1760333793202,5.13932346,194.58,194.54,9.8324757]
[1760333793415,0.71,194.57,194.54,9.8324757]
[1760333795303,0.71,194.57,194.54,8.3324757]
[1760333795505,0.71,194.57,194.53,9.8324757]
[1760333795899,0.71,194.57,194.54,9.8324757]
[1760333797717,11.75452789,194.62,194.55,9.8324757]
[1760333797923,0.10715592,194.65,194.57,9.8324757]
[1760333798224,0.10715592,194.65,194.58,9.8324757]
[1760333799118,0.10715592,194.65,194.62,9.8324757]
[1760333799916,0.10715592,194.65,194.62,14.97069376]
[1760333800119,0.10715592,194.65,194.62,15.63069376]
[1760333802123,0.10715592,194.65,194.62,13.13069376]
[1760333802299,0.10715592,194.65,194.61,9.8324757]
[1760333803329,0.10715592,194.65,194.61,5.13846755]
[1760333803621,0.72,194.62,194.55,9.8324757]
[1760333803918,0.72,194.62,194.54,10.5124757]
[1760333804115,0.72,194.61,194.54,10.5124757]
[1760333804300,0.72,194.61,194.55,9.8324757]
[1760333804701,26.04000159,194.63,194.58,9.8324757]
[1760333805013,20.90196921,194.63,194.58,9.8324757]
[1760333805217,20.90196921,194.63,194.58,10.4924757]
[1760333805525,26.72996326,194.63,194.58,10.4924757]
[1760333805722,0.69,194.62,194.56,20.70895091]
[1760333806102,20.8,194.6,194.51,10.87647521]
[1760333806302,0.69,194.59,194.51,10.87647521]
[1760333806613,0.69,194.59,194.52,9.8324757]
[1760333806808,0.69,194.59,194.51,10.87647521]
[1760333807013,0.69,194.59,194.52,9.8324757]
[1760333807214,0.69,194.58,194.51,10.87647521]
[1760333807523,5.13953846,194.57,194.52,9.8324757]
[1760333807827,5.13953846,194.57,194.53,9.8324757]
[1760333808120,5.13953846,194.57,194.51,16.01755433]
[1760333808312,0.69,194.56,194.5,0.2]
[1760333808513,0.69,194.56,194.5,10.0324757]
[1760333808829,38.78838463,194.57,194.5,0.2]
[1760333809014,20.8,194.54,194.5,0.2]
[1760333809320,0.0967768,194.51,194.5,0.2]
[1760333809902,0.7867768,194.51,194.5,0.2]
[1760333811308,5.92790064,194.51,194.5,0.2]
[1760333819432,26.72790064,194.51,194.5,0.2]
[1760333823918,20.8967768,194.51,194.5,0.2]
[1760333824119,5.23790064,194.51,194.5,0.2]
[1760333824319,20.8967768,194.51,194.5,0.86]
[1760333824535,20.8967768,194.51,194.5,10.6924757]
[1760333824536,0.0967768,194.51,194.5,10.6924757]
[1760333824836,0.0967768,194.51,194.5,0.86]
[1760333825029,0.0967768,194.51,194.5,10.6924757]
[1760333825620,0.0967768,194.51,194.5,15.83386387]
[1760333825827,0.0967768,194.51,194.5,26.71033908]
[1760333826330,0.0967768,194.51,194.5,0.86]
[1760333826535,0.0967768,194.51,194.5,26.71033908]
[1760333827518,0.11104966,194.52,194.51,10.87647521]
[1760333827836,0.11104966,194.52,194.51,256.66895091]
[1760333828431,0.11104966,194.52,194.51,261.81007475]
[1760333829321,0.10593991,194.52,194.51,274.66288437]
[1760333830442,0.1089287,194.55,194.54,31.67647521]
[1760333830639,0.10226235,194.56,194.55,10.87647521]
[1760333830841,0.10226235,194.56,194.55,155.46895091]
[1760333831543,0.10226235,194.56,194.55,145.63647521]
[1760333831731,0.10226235,194.56,194.55,10.4924757]
[1760333832135,0.10226235,194.56,194.55,0.66]
[1760333832335,0.10226235,194.56,194.55,15.63254252]
[1760333833832,0.10226235,194.56,194.55,26.50901773]
[1760333834032,0.10226235,194.56,194.55,241.00901773]
[1760333835649,0.10226235,194.56,194.55,235.29965025]
[1760333836160,0.10226235,194.56,194.55,230.51654203]
[1760333836325,0.10226235,194.56,194.55,223.76317504]
[1760333836532,0.10226235,194.56,194.55,224.41317504]
[1760333837147,0.80226235,194.56,194.55,214.5]
[1760333838238,0.10226235,194.56,194.55,214.5]
[1760333838438,0.10226235,194.56,194.55,219.64006682]
[1760333840650,0.10226235,194.56,194.55,214.5]
[1760333840848,0.10226235,194.56,194.55,80.4]
[1760333841058,0.80226235,194.56,194.55,80.4]
[1760333841229,5.94206498,194.56,194.55,80.4]
[1760333844944,0.10226235,194.56,194.55,80.4]
[1760333845551,0.10226235,194.56,194.52,87.00429483]
[1760333845856,0.10226235,194.56,194.52,87.65429483]
[1760333846247,0.10226235,194.56,194.52,92.79512791]
[1760333846439,0.10226235,194.56,194.52,87.65429483]
[1760333847039,5.24210282,194.56,194.52,81.05]
[1760333847247,0.10226235,194.56,194.52,81.05]
[1760333847451,0.10226235,194.56,194.52,86.19082109]
[1760333847751,0.10226235,194.56,194.52,81.05]
[1760333848261,0.10226235,194.56,194.53,6.60429483]
[1760333848580,0.10226235,194.56,194.53,7.25429483]
[1760333848734,0.10226235,194.56,194.54,0.65]
[1760333849345,0.09466812,194.55,194.53,6.60429483]
[1760333849542,0.09466812,194.55,194.54,0.65]
[1760333851057,0.11235165,194.57,194.56,80.20452027]
[1760333853866,5.95189011,194.57,194.5,0.2]
[1760333854173,20.8,194.54,194.5,0.2]
[1760333854551,0.7,194.53,194.5,0.2]
[1760333855070,20.8,194.54,194.5,0.2]
[1760333855368,0.7,194.53,194.5,0.2]
[1760333855589,5.95189011,194.57,194.51,7.25429483]
[1760333856170,5.95189011,194.57,194.5,0.2]
[1760333856171,0.7,194.56,194.5,0.2]
[1760333856580,0.7,194.56,194.5,6.80429483]
[1760333856875,18.10073628,194.57,194.5,0.2]
[1760333857053,18.10073628,194.57,194.51,6.60429483]
[1760333857366,0.7,194.56,194.5,6.80429483]
[1760333857566,0.7,194.55,194.5,0.2]
[1760333857772,18.10073628,194.57,194.5,6.80429483]
[1760333857773,0.7,194.54,194.5,6.80429483]
[1760333858373,5.84044351,194.54,194.5,6.80429483]
[1760333858952,5.84044351,194.54,194.5,0.2]
[1760333859674,5.84044351,194.54,194.5,6.80429483]
[1760333860055,5.84044351,194.54,194.5,0.2]
[1760333860972,5.84044351,194.54,194.5,6.80429483]
[1760333861149,5.84044351,194.54,194.5,0.2]
[1760333861758,0.7,194.53,194.5,0.2]
[1760333863251,38.7912711,194.54,194.5,0.2]
[1760333863458,0.67,194.53,194.5,0.2]
[1760333863768,0.67,194.52,194.5,0.2]
[1760333863970,38.79117917,194.54,194.5,0.2]
[1760333864169,0.67,194.51,194.5,0.2]
[1760333864748,21.46,194.51,194.5,0.2]
[1760333865450,5.80112384,194.51,194.5,0.2]
[1760333865648,26.60112384,194.51,194.5,0.2]
[1760333865862,20.8,194.49,194.48,0.2]
[1760333866352,21.46,194.49,194.48,0.2]
[1760333867785,26.60165252,194.49,194.48,0.2]
[1760333869379,26.70790484,194.49,194.48,0.2]
[1760333870484,26.04790484,194.49,194.48,0.2]
[1760333870863,26.70790484,194.49,194.48,0.2]
[1760333872179,0.10625232,194.49,194.48,0.9]
[1760333872379,0.10625232,194.49,194.48,7.51078019]
[1760333873869,0.10625232,194.49,194.48,6.81078019]
[1760333874663,0.10625232,194.49,194.48,0.2]
[1760333874859,5.24790484,194.49,194.48,0.2]
[1760333875082,0.10625232,194.49,194.48,0.2]
[1760333875766,5.90790484,194.49,194.48,0.2]
[1760333875969,5.24790484,194.49,194.48,0.2]
[1760333877486,5.90790484,194.49,194.48,0.2]
[1760333877787,5.90790484,194.49,194.47,0.2]
[1760333877788,31.67647521,194.45,194.38,0.2]
[1760333877962,20.65999999,194.44,194.38,0.2]
[1760333878166,20.8,194.39,194.38,0.2]
[1760333878586,21.46,194.39,194.38,0.2]
[1760333879887,26.60429754,194.39,194.38,0.2]
[1760333880284,20.8,194.36,194.33,0.2]
[1760333880787,21.46,194.36,194.33,0.2]
[1760333881284,18.0050414,194.39,194.33,0.2]
[1760333881490,18.6650414,194.39,194.33,0.2]
[1760333881675,0.66,194.38,194.33,0.2]
[1760333881875,20.8,194.39,194.36,0.7]
[1760333882074,20.8,194.38,194.36,0.7]
[1760333882466,5.14376832,194.41,194.37,0.7]
[1760333882780,5.14347098,194.43,194.38,0.7]
[1760333882982,25.94347098,194.43,194.38,0.7]
[1760333883184,0.66,194.42,194.35,0.2]
[1760333883392,20.8,194.4,194.35,0.2]
[1760333883608,0.66,194.39,194.35,0.2]
[1760333883891,5.14482687,194.37,194.35,0.2]
[1760333884675,5.14452903,194.39,194.35,0.2]
[1760333884985,5.14452903,194.39,194.36,0.7]
[1760333885187,5.14452903,194.39,194.35,0.2]
[1760333885485,20.8,194.36,194.35,0.2]
[1760333886191,25.94509158,194.36,194.35,0.2]
[1760333888472,26.60509158,194.36,194.34,0.2]
[1760333888791,0.66,194.35,194.34,0.2]
[1760333889490,0.76863311,194.35,194.34,0.2]
[1760333889693,0.10863311,194.35,194.34,0.2]
[1760333890987,26.71398942,194.35,194.34,0.2]
[1760333892912,5.91398942,194.35,194.34,0.2]
[1760333893074,20.8,194.34,194.33,1e-08]
[1760333893607,21.45,194.34,194.33,1e-08]
[1760333894389,20.8,194.32,194.3,0.2]
[1760333894875,5.79641552,194.31,194.3,0.2]
[1760333895702,5.79641552,194.31,194.29,0.2]
[1760333895999,20.8,194.3,194.29,0.2]
[1760333898278,25.94668039,194.3,194.29,0.2]
[1760333900089,5.14565102,194.34,194.29,0.92]
[1760333900286,5.14565102,194.34,194.3,0.72]
[1760333900481,5.14565102,194.34,194.31,0.72]
[1760333900688,20.8,194.32,194.31,0.72]
[1760333901383,5.14565102,194.34,194.31,0.72]
[1760333904913,0.65,194.33,194.29,0.2]
[1760333905297,18.00970371,194.34,194.29,0.92]
[1760333905485,20.8,194.31,194.29,0.2]
[1760333905690,0.65,194.3,194.29,0.2]
[1760333906586,5.79668039,194.3,194.29,0.2]
[1760333908302,5.14668039,194.3,194.29,0.2]
[1760333909391,5.24780529,194.3,194.29,0.2]